{"text_format":"3","workbook":"xlsx","n_sheets":3,"sheets":["Projektbudget","Personalkosten Angestellte","Personalkosten freie DN"],"read":"whole","date_system":"1900"}

{"sheet":"Projektbudget","index":0,"n_rows":43,"n_cols":7,"rows_kept":43,"merged":[[0,0,0,6],[1,0,1,6],[2,0,2,6],[3,0,3,6],[5,1,5,2],[11,1,11,2],[17,1,17,2],[23,1,23,2],[25,0,25,2],[26,0,26,2],[27,0,27,3],[28,0,28,3],[29,0,29,3],[31,1,31,2],[32,1,32,2],[34,1,34,2],[38,1,38,2],[42,0,42,2]]}
["Projektbudget - \"Projekttitel\""]
["Projektlaufzeit: TT.MM.JJJJ - TT.MM.JJJJ (xx Monate)"]
[]
["Gesamtprojektkosten"]
["Pos.Nr.","Budgetposition","Anmerkungen/Kalkulationsgrundlagen   (i)","Betrag","Korrekturen","Anerkannt","Förderbar"]
[1,"Interne Personalkosten   (i)",null,{"$f":"SUM(D7:D11)","v":{"v":0,"d":"€  0.00"}},{"$f":"SUM(E7:E11)","v":{"v":0,"d":"€  0.00"}},{"$f":"SUM(F7:F11)","v":{"v":0,"d":"€  0.00"}}]
[]
[]
[]
[]
[]
[2,"Externe Honorarkosten   (i)",null,{"$f":"SUM(D13:D17)","v":{"v":0,"d":"€  0.00"}},{"$f":"SUM(E13:E17)","v":{"v":0,"d":"€  0.00"}},{"$f":"SUM(F13:F17)","v":{"v":0,"d":"€  0.00"}}]
[]
[]
[]
[]
[]
[3,"Externe Sachkosten   (i)",null,{"$f":"SUM(D19:D23)","v":{"v":0,"d":"€  0.00"}},{"$f":"SUM(E19:E23)","v":{"v":0,"d":"€  0.00"}},{"$f":"SUM(F19:F23)","v":{"v":0,"d":"€  0.00"}}]
[]
[]
[]
[]
[]
[4,"Overheadkosten (i)",null,{"$f":"SUM(D25)","v":{"v":0,"d":"€  0.00"}},{"$f":"SUM(E25)","v":{"v":0,"d":"€  0.00"}},{"$f":"SUM(F25)","v":{"v":0,"d":"€  0.00"}}]
[]
["Gesamtprojektkosten (inkl./exkl. USt)   (i)",null,null,{"$f":"SUM(D18,D12,D6,D24)","v":{"v":0,"d":"€  0.00"}},{"$f":"SUM(E18,E12,E6,E24)","v":{"v":0,"d":"€  0.00"}},{"v":0,"d":"€  0.00"}]
["davon beim FGÖ beantragter Förderbetrag (bitte Zahl eingeben)"]
["(i) Hier werden diverse Hilfestellungen und Informationen zur Verfügung gestellt. Zum Anzeigen bitte die jeweilige Zelle auswählen. Hinweis: Bitte beachten Sie die spezifischen Regelungen bei Projekten der Fort- und Weiterbildung (siehe Website)."]
[]
[" Projektfinanzierung"]
["Pos.Nr.","Finanzierungsquelle","Anmerkungen","Betrag"]
[1,"beim FGÖ beantrager Förderbetrag (wird automatisch von oben übernommen)",null,{"$f":"D27","v":{"v":0,"d":"€  0.00"}}]
[2,"Liquide Eigenmittel Antragssteller/in   (i)",null,{"$f":"SUM(D34)","v":{"v":0,"d":"€  0.00"}}]
[]
[3,"Andere Geldgeber/innen   (i)",null,{"$f":"SUM(D36:D38)","v":{"v":0,"d":"€  0.00"}}]
[]
[{"$nulls":5},"Zielgruppengröße"]
[]
[4,"Sonstige projektbezogene Finanzierungsquellen   (i)",null,{"$f":"SUM(D40:D42)","v":{"v":0,"d":"€  0.00"}}]
[]
[{"$nulls":6},"ja"]
[{"$nulls":6},"nein"]
["Summe der Finanzierung  ",null,null,{"$f":"SUM(D39,D35,D33,D32)","v":{"v":0,"d":"€  0.00"}}]

{"sheet":"Personalkosten Angestellte","index":1,"n_rows":30,"n_cols":7,"rows_kept":30,"merged":[[0,0,0,6],[1,0,1,6],[2,2,2,3],[2,5,2,6],[3,1,3,3],[3,4,3,6],[4,1,4,6],[5,0,5,6],[6,1,6,5]]}
["Personalkostenkalkulation für bestehendes Dienstverhältnis/Neuanstellung/Aufstockung"]
[]
["Lohnnebenkosten Stand 01.01.2024:",{"$f":"(20.98+3.7+3+1.53)/100","v":{"v":0.2921,"d":"29.21%"}},"für den Monatsbruttobezug (ohne Sonderzahl.)",null,{"$f":"(20.98+3.7+3+1.53)/100","v":{"v":0.2921,"d":"29.21%"}},"für die Sonderzahlungen"]
[null,"Dieser Satz setzt sich wie folgt zusammen:\n20,98 % Sozialversicherungsbeitrag Dienstgeber\n3,7 % Dienstgeberbeitrag (DB)\n3 % Kommunalsteuer\n1,53 % Mitarbeitervorsorge (MV)",null,null,"Dieser Satz setzt sich wie folgt zusammen:\n20,98 % Sozialversicherungsbeitrag Dienstgeber\n3,7 % Dienstgeberbeitrag (DB)\n3 % Kommunalsteuer\n1,53 % Mitarbeitervorsorge (MV)"]
[null,"Änderungen der Lohnnebenkostensätze sind ggf. selbst anzupassen - dazu bitte die jeweilige Summe anklicken und die Formel korrigieren!"]
[]
[null,"Bitte hier die Dienstnehmer/-innen eintragen",{"$nulls":4},"Beispiel"]
["Name der Dienstnehmerin/\ndes Dienstnehmers",{"$nulls":5},"Maria Musterfrau"]
["Bitte das entspr. Dienstverhältnis aus \nder Dropdown-Liste auswählen",{"$nulls":5},"Bestehendes Dienstverhältnis"]
["Tätigkeitbereich im Projekt",{"$nulls":5},"Projektleiterin"]
["Monatsbruttobezug exkl. LNK   (i)\n(bitte nur Zahl eingeben!)",{"$nulls":5},{"v":2500,"d":"€  2,500.00"}]
["Arbeitszeit/Woche in Stunden\n(bitte nur Zahl eingeben!)",{"$nulls":5},38.5]
["Stunden/Woche für das Projekt\n(bitte nur Zahl eingeben!)",{"$nulls":5},5]
["Start der Projekttätigkeit (TT.MM.JJJJ)",{"$nulls":5},"2020-01-01"]
["Ende der Projekttätigkeit (TT.MM.JJJJ)",{"$nulls":5},"2021-06-30"]
["Laufzeit in Monaten\n(wird automatisch berechnet)",{"$f":"IF(B15=\"\",\"\",ROUND(12*YEARFRAC(EOMONTH(B14,0),EOMONTH(B15,0),0)-1/12,0)+IF(DAY(B14)<15,0.5,0)+IF(DAY(B15)<15,0,0.5))","v":""},"","","","",{"$f":"IF(G15=\"\",\"\",ROUND(12*YEARFRAC(EOMONTH(G14,0),EOMONTH(G15,0),0)-1/12,0)+IF(DAY(G14)<15,0.5,0)+IF(DAY(G15)<15,0,0.5))","v":18}]
["Monatsbruttobezug Projektstunden",{"$f":"B11/B12*B13","v":{"$error":"#DIV/0!"}},{"$error":"#DIV/0!"},{"$error":"#DIV/0!"},{"$error":"#DIV/0!"},{"$error":"#DIV/0!"},{"$f":"G11/G12*G13","v":{"v":324.67532467532465,"d":"€  324.68"}}]
["Bruttobezug für den Projektzeitraum",{"$f":"B17*B16","v":{"$error":"#DIV/0!"}},{"$error":"#DIV/0!"},{"$error":"#DIV/0!"},{"$error":"#DIV/0!"},{"$error":"#DIV/0!"},{"$f":"G17*G16","v":{"v":5844.155844155844,"d":"€  5,844.16"}}]
["Aliquote SZ für den Projektzeitraum",{"$f":"B17/12*B16*2","v":{"$error":"#DIV/0!"}},{"$error":"#DIV/0!"},{"$error":"#DIV/0!"},{"$error":"#DIV/0!"},{"$error":"#DIV/0!"},{"$f":"G17/12*G16*2","v":{"v":974.0259740259739,"d":"€  974.03"}}]
["LNK",{"$f":"B18*$B$3","v":{"$error":"#DIV/0!"}},{"$error":"#DIV/0!"},{"$error":"#DIV/0!"},{"$error":"#DIV/0!"},{"$error":"#DIV/0!"},{"$f":"G18*$B$3","v":{"v":1707.077922077922,"d":"€  1,707.08"}}]
["LNK SZ",{"$f":"B19*$E$3","v":{"$error":"#DIV/0!"}},{"$error":"#DIV/0!"},{"$error":"#DIV/0!"},{"$error":"#DIV/0!"},{"$error":"#DIV/0!"},{"$f":"G19*$E$3","v":{"v":284.512987012987,"d":"€  284.51"}}]
["Buttobezug inkl. LNK für den \nProjektzeitraum   (i)",{"$f":"IFERROR(ROUND(SUM(B18:B21),2),\"\")","v":""},"","","","",{"$f":"IFERROR(ROUND(SUM(G18:G21),2),\"\")","v":{"v":8809.77,"d":"€ 8,809.77"}}]
["Buttostundensatz inkl. LNK   (i)",{"$f":"IFERROR(ROUND(SUM(B18:B21)/B16/4.33/B13,2),\"\")","v":""},{"$f":"IFERROR(ROUND(SUM(C18:C21)/C16/4.33/C13,2),\"\")","v":""},"","","",{"v":22.61,"d":"€ 22.61"}]
["(i) Hier werden diverse Hilfestellungen und Informationen zur Verfügung gestellt. Zum Anzeigen bitte die jeweilige Zelle auswählen."]
[]
[]
[]
["Bestehendes Dienstverhältnis"]
["Neuanstellung"]
["Aufstockung"]

{"sheet":"Personalkosten freie DN","index":2,"n_rows":20,"n_cols":7,"rows_kept":20,"merged":[[0,0,0,6],[1,0,1,6],[2,2,2,3],[2,5,2,6],[3,1,3,3],[3,4,3,6],[4,1,4,6],[5,0,5,6],[6,1,6,5]]}
["Personalkostenkalkulation für freies Dienstverhältnis für Unselbständige"]
[]
["Lohnnebenkosten Stand 01.01.2020:",{"$f":"(20.73+3.9+3+1.53)/100","v":{"v":0.2916,"d":"29.16%"}},"für das monatliche Honorar"]
[null,"Dieser Satz setzt sich wie folgt zusammen:\n20,73 % Sozialversicherungsbeitrag Dienstgeber\n1,53 % Mitarbeitervorsorge (MV)"]
[null,"Änderungen der Lohnnebenkostensätze sind ggf. selbst anzupassen - dazu bitte die jeweilige Summe anklicken und die Formel korrigieren!"]
[]
[null,"Bitte hier die Dienstnehmer/-innen eintragen",{"$nulls":4},"Beispiel"]
["Name der Dienstnehmerin/\ndes Dienstnehmers",{"$nulls":5},"Maria Musterfrau"]
["Tätigkeitbereich im Projekt",{"$nulls":5},"Wissenschaftliche Mitarbeiterin"]
["Dienstnehmer/in ab (TT.MM.JJJJ)",{"$nulls":5},"2020-01-01"]
["Monatsbruttobezug exkl. LNK   (i)\n(bitte nur Zahl eingeben!)",{"$nulls":5},{"v":490,"d":"€  490.00"}]
["Arbeitszeit/Woche in Stunden\n(bitte nur Zahl eingeben!)",{"$nulls":5},5]
["Start der Projekttätigkeit (TT.MM.JJJJ)",{"$nulls":5},"2020-01-01"]
["Ende der Projekttätigkeit (TT.MM.JJJJ)",{"$nulls":5},"2021-06-30"]
["Laufzeit in Monaten\n(wird automatisch berechnet)",{"$f":"IF(B14=\"\",\"\",ROUND(12*YEARFRAC(EOMONTH(B13,0),EOMONTH(B14,0),0)-1/12,0)+IF(DAY(B13)<15,0.5,0)+IF(DAY(B14)<15,0,0.5))","v":""},"","","","",{"$f":"IF(G14=\"\",\"\",ROUND(12*YEARFRAC(EOMONTH(G13,0),EOMONTH(G14,0),0)-1/12,0)+IF(DAY(G13)<15,0.5,0)+IF(DAY(G14)<15,0,0.5))","v":18}]
["Bruttobezug für den Projektzeitraum",{"$f":"B11*B15","v":{"$error":"#VALUE!"}},{"$error":"#VALUE!"},{"$error":"#VALUE!"},{"$error":"#VALUE!"},{"$error":"#VALUE!"},{"$f":"G11*G15","v":{"v":8820,"d":"€  8,820.00"}}]
["LNK",{"$f":"ROUND(B16*$B$3,2)","v":{"$error":"#VALUE!"}},{"$error":"#VALUE!"},{"$error":"#VALUE!"},{"$error":"#VALUE!"},{"$error":"#VALUE!"},{"$f":"ROUND(G16*$B$3,2)","v":{"v":2571.91,"d":"€  2,571.91"}}]
["Buttobezug inkl. LNK für den \nProjektzeitraum   (i)",{"$f":"IFERROR(ROUND(SUM(B16:B17),2),\"\")","v":""},"","","","",{"$f":"IFERROR(ROUND(SUM(G16:G17),2),\"\")","v":{"v":11391.91,"d":"€ 11,391.91"}}]
["Buttostundensatz inkl. LNK   (i)",{"$f":"IFERROR(ROUND(SUM(B16:B17)/B15/4.33/B12,2),\"\")","v":""},"","","","",{"$f":"IFERROR(ROUND(SUM(G16:G17)/G15/4.33/G12,2),\"\")","v":{"v":29.23,"d":"€ 29.23"}}]
["(i) Hier werden diverse Hilfestellungen und Informationen zur Verfügung gestellt. Zum Anzeigen bitte die jeweilige Zelle auswählen."]